bitfinex/quotes_BTCUSD_20251012
["timestamp","ask_amount","ask_price","bid_price","bid_amount"]
[1760263341366,0.57318259,112150.0,112140.0,0.06740976]
[1760263341563,0.57318259,112150.0,112140.0,0.07844976]
[1760263342202,0.57318259,112150.0,112140.0,0.12632976]
[1760263342203,0.51837259,112150.0,112140.0,0.12632976]
[1760263342818,0.54939259,112150.0,112140.0,0.07844976]
[1760263343041,0.51837259,112150.0,112140.0,0.07844976]
[1760263343602,0.57318259,112150.0,112140.0,0.04909976]
[1760263344047,0.61742259,112150.0,112140.0,0.04909976]
[1760263344466,0.58152957,112150.0,112140.0,0.07844976]
[1760263344889,0.6449928,112150.0,112140.0,0.03805976]
[1760263345772,0.6589774,112150.0,112140.0,0.03805976]
[1760263346212,0.6599774,112150.0,112140.0,0.03805976]
[1760263346851,0.6589774,112150.0,112140.0,0.03805976]
[1760263347056,0.66890994,112150.0,112140.0,0.03805976]
[1760263347925,0.60090207,112150.0,112140.0,0.03805976]
[1760263351418,0.58691747,112150.0,112140.0,0.03805976]
[1760263355537,0.59572415,112150.0,112140.0,0.03805976]
[1760263356540,0.58737717,112150.0,112140.0,0.03805976]
[1760263356748,0.59572589,112150.0,112140.0,0.03805976]
[1760263357592,0.58691921,112150.0,112140.0,0.00057976]
[1760263357791,0.61085398,112150.0,112140.0,0.00057976]
[1760263360616,0.68372731,112150.0,112140.0,0.00057976]
[1760263360840,0.65181428,112150.0,112140.0,0.00057976]
[1760263361289,0.65181428,112150.0,112110.0,0.10910362]
[1760263361290,0.5183803,112120.0,112110.0,0.03748]
[1760263361508,0.63727512,112120.0,112110.0,0.03748]
[1760263361888,0.51839621,112110.0,112100.0,0.0004]
[1760263362148,0.56180219,112110.0,112100.0,0.0004]
[1760263362322,0.59367219,112110.0,112100.0,0.0004]
[1760263362523,0.63874219,112110.0,112100.0,0.0004]
[1760263363311,0.63971314,112110.0,112100.0,0.0004]
[1760263365237,0.63971314,112110.0,112100.0,1e-08]
[1760263365888,0.6637093,112110.0,112100.0,1e-08]
[1760263366098,0.63871314,112110.0,112100.0,1e-08]
[1760263366509,0.63971314,112110.0,112100.0,1e-08]
[1760263368628,0.81886118,112110.0,112100.0,1e-08]
[1760263368841,0.94794,112110.0,112100.0,1e-08]
[1760263369055,0.90758052,112110.0,112100.0,1e-08]
[1760263370581,0.71886119,112110.0,112100.0,1e-08]
[1760263370788,0.81886118,112110.0,112100.0,1e-08]
[1760263371202,0.83285519,112110.0,112100.0,1e-08]
[1760263371834,0.86489821,112110.0,112100.0,1e-08]
[1760263372040,0.76489822,112110.0,112100.0,1e-08]
[1760263372310,0.95361755,112110.0,112100.0,1e-08]
[1760263372526,0.92962139,112110.0,112100.0,1e-08]
[1760263373172,0.93793122,112110.0,112100.0,1e-08]
[1760263373379,1.00274926,112110.0,112100.0,1e-08]
[1760263374628,0.91402992,112110.0,112100.0,1e-08]
[1760263375268,0.89741369,112110.0,112100.0,1e-08]
[1760263375479,0.7096711,112110.0,112100.0,1e-08]
[1760263375687,0.67762808,112110.0,112100.0,1e-08]
[1760263376339,0.31370715,112110.0,112100.0,1e-08]
[1760263376555,0.29451022,112110.0,112100.0,1e-08]
[1760263376779,0.63451022,112110.0,112100.0,1e-08]
[1760263376986,0.65370715,112110.0,112100.0,1e-08]
[1760263377408,0.681223,112110.0,112100.0,1e-08]
[1760263377827,0.65370715,112110.0,112100.0,1e-08]
[1760263379378,0.71387308,112110.0,112100.0,1e-08]
[1760263379793,0.68995215,112110.0,112100.0,1e-08]
[1760263380269,0.67595814,112110.0,112100.0,1e-08]
[1760263381774,0.69987907,112110.0,112100.0,1e-08]
[1760263382623,0.71631623,112110.0,112100.0,1e-08]
[1760263382841,0.74910617,112110.0,112100.0,1e-08]
[1760263383049,0.70788941,112110.0,112100.0,1e-08]
[1760263383259,0.69991096,112110.0,112100.0,1e-08]
[1760263383833,0.67595814,112110.0,112100.0,1e-08]
[1760263384276,0.69991096,112110.0,112100.0,1e-08]
[1760263385998,0.75209555,112110.0,112100.0,1e-08]
[1760263386514,0.69991096,112110.0,112100.0,1e-08]
[1760263387195,0.73184223,112110.0,112100.0,1e-08]
[1760263388407,0.70788941,112110.0,112100.0,1e-08]
[1760263389190,0.75609122,112110.0,112100.0,1e-08]
[1760263389739,0.76443499,112110.0,112100.0,1e-08]
[1760263389950,0.28702231,112110.0,112100.0,0.04008001]
[1760263390160,0.59464314,112110.0,112100.0,0.04008001]
[1760263390804,0.59464314,112110.0,112100.0,0.01104001]
[1760263391232,0.61867854,112110.0,112100.0,0.01104001]
[1760263391461,0.59464314,112110.0,112100.0,0.04008001]
[1760263391664,0.53859314,112110.0,112100.0,0.08460001]
[1760263391873,0.17847842,112120.0,112100.0,0.29316404]
[1760263392086,0.17847842,112120.0,112100.0,0.24864403]
[1760263392087,0.34,112110.0,112100.0,0.24864403]
[1760263392288,0.341,112110.0,112100.0,0.24864403]
[1760263392710,0.51939621,112110.0,112100.0,0.29316403]
[1760263393273,0.51839621,112110.0,112100.0,0.29316403]
[1760263393495,0.51839621,112110.0,112100.0,0.33068403]
[1760263394093,0.51839621,112110.0,112100.0,0.1522719]
[1760263394658,0.51839621,112110.0,112100.0,0.33068403]
[1760263395290,0.51839621,112110.0,112100.0,0.1522719]
[1760263395952,0.34,112110.0,112100.0,0.33068403]
[1760263396576,0.51839621,112110.0,112100.0,0.33068403]
[1760263396788,0.34,112110.0,112100.0,0.33068403]
[1760263397002,0.51839621,112110.0,112100.0,0.33068403]
[1760263397233,0.34,112110.0,112100.0,0.33068403]
[1760263397471,8.884e-05,112120.0,112110.0,0.20854811]
[1760263397694,8.884e-05,112120.0,112110.0,0.29441811]
[1760263397921,0.51846914,112120.0,112110.0,0.29441811]
[1760263398373,8.884e-05,112120.0,112110.0,0.29441811]
[1760263398577,0.17846914,112120.0,112110.0,0.29441811]
[1760263399045,8.884e-05,112120.0,112110.0,0.29441811]
[1760263399252,0.34008884,112120.0,112110.0,0.29441811]
[1760263400922,0.51846914,112120.0,112110.0,0.1160219]
[1760263401128,0.51846914,112120.0,112110.0,0.24989811]
[1760263401572,0.57191914,112120.0,112110.0,0.04135]
[1760263401955,0.51846914,112120.0,112110.0,0.0715019]
[1760263402130,0.57191914,112120.0,112110.0,0.0715019]
[1760263402682,0.51846914,112120.0,112110.0,0.0715019]
[1760263402869,0.54831914,112120.0,112110.0,0.0715019]
[1760263403029,0.52000441,112120.0,112110.0,0.0715019]
[1760263403655,0.52000441,112120.0,112110.0,0.29441811]
[1760263404262,0.34162411,112120.0,112110.0,0.29441811]
[1760263404467,0.52000441,112120.0,112110.0,0.29441811]
[1760263404680,0.00162411,112120.0,112110.0,0.29441811]
[1760263406166,0.18000441,112120.0,112110.0,0.1160219]
[1760263406396,0.00162411,112120.0,112110.0,0.29441811]
[1760263408553,0.00162411,112120.0,112110.0,0.38394763]
[1760263408757,0.00162411,112120.0,112110.0,0.40894762]
[1760263410037,0.00162411,112120.0,112110.0,0.40994762]
[1760263410273,0.00162411,112120.0,112110.0,0.38494763]
[1760263410565,0.00162411,112120.0,112110.0,0.38594763]
[1760263410784,0.00162411,112120.0,112110.0,0.29641811]
[1760263411415,0.18000441,112120.0,112110.0,0.29641811]
[1760263411844,0.00162411,112120.0,112110.0,0.29641811]
[1760263412047,0.18000441,112120.0,112110.0,0.29541811]
[1760263412258,0.18000441,112120.0,112110.0,0.1160219]
[1760263412462,0.18000441,112120.0,112110.0,0.04135]
[1760263412677,0.18000441,112120.0,112110.0,0.0715019]
[1760263412877,0.18000441,112120.0,112110.0,0.24989811]
[1760263413160,0.18000441,112120.0,112110.0,0.29441811]
[1760263413374,0.23345441,112120.0,112110.0,0.04135]
[1760263413812,0.57345441,112120.0,112110.0,0.0424619]
[1760263414500,0.17839621,112110.0,112100.0,0.04856]
[1760263414711,0.17839621,112110.0,112100.0,0.06640121]
[1760263414917,0.23280159,112110.0,112100.0,0.0776]
[1760263417181,0.17935159,112110.0,112100.0,0.16954311]
[1760263417407,0.17935159,112110.0,112100.0,0.34795524]
[1760263417624,0.17935159,112110.0,112100.0,0.33011403]
[1760263417847,0.17935159,112110.0,112100.0,0.1517019]
[1760263418062,0.27885159,112110.0,112100.0,0.04856]
[1760263418358,0.27885159,112110.0,112100.0,0.03752]
[1760263418563,0.61885159,112110.0,112100.0,0.03752]
[1760263419908,0.63808195,112110.0,112100.0,0.03752]
[1760263420115,0.04868855,112110.0,112100.0,0.06828]
[1760263420321,0.20096621,112110.0,112100.0,0.09]
[1760263420539,0.57206621,112110.0,112100.0,0.09]
[1760263421366,0.51839621,112110.0,112100.0,0.13395]
[1760263421597,0.51839621,112110.0,112100.0,0.09]
[1760263421846,0.51939621,112110.0,112100.0,0.09]
[1760263422142,0.57306621,112110.0,112100.0,0.09]
[1760263422349,0.57206621,112110.0,112100.0,0.09]
[1760263422550,0.57306621,112110.0,112100.0,0.09]
[1760263423232,0.17939621,112110.0,112100.0,0.1644419]
[1760263424752,0.17939621,112110.0,112100.0,0.03752]
[1760263424753,0.27461621,112110.0,112100.0,0.03752]
[1760263425408,0.23060621,112110.0,112100.0,0.06632]
[1760263425614,0.23060621,112110.0,112100.0,0.08789]
[1760263425827,0.23060621,112110.0,112100.0,0.05909]
[1760263426105,0.27461621,112110.0,112100.0,0.03752]
[1760263428211,0.17939621,112110.0,112100.0,0.13218]
[1760263429172,0.23060621,112110.0,112100.0,0.03752]
[1760263429441,0.27461621,112110.0,112100.0,0.03752]
[1760263430175,0.23060621,112110.0,112100.0,0.03752]
[1760263430378,0.23060621,112110.0,112100.0,0.08789]
[1760263431424,0.17939621,112110.0,112100.0,0.18017311]
[1760263432282,0.51939621,112110.0,112100.0,0.35858524]
[1760263432529,0.001,112110.0,112100.0,0.34074403]
[1760263432742,0.001,112110.0,112100.0,0.43027355]
[1760263433871,0.001,112110.0,112100.0,0.77027355]
[1760263434728,8.884e-05,112120.0,112110.0,0.17839621]
[1760263434947,8.884e-05,112120.0,112110.0,0.23577621]
[1760263435173,8.884e-05,112120.0,112110.0,0.29472811]
[1760263435852,8.884e-05,112120.0,112110.0,0.29572811]
[1760263436275,8.884e-05,112120.0,112110.0,0.75025762]
[1760263436904,8.884e-05,112120.0,112110.0,0.72525763]
[1760263437566,8.884e-05,112120.0,112110.0,0.38525763]
[1760263437777,8.884e-05,112120.0,112110.0,0.29672811]
[1760263438831,8.884e-05,112120.0,112110.0,0.75125762]
[1760263439303,8.884e-05,112120.0,112110.0,1.15125762]
[1760263440413,0.00066874,112120.0,112110.0,1.15125762]
[1760263442179,0.00066874,112120.0,112110.0,0.75125762]
[1760263444268,0.00066874,112120.0,112110.0,0.60657621]
[1760263444931,0.00066874,112120.0,112110.0,0.63672811]
[1760263445145,0.00066874,112120.0,112110.0,0.72625763]
[1760263448188,0.00066874,112120.0,112110.0,0.75125762]
[1760263448452,0.00066874,112120.0,112110.0,1.01995762]
[1760263449409,0.00066874,112120.0,112110.0,0.75125762]
[1760263450470,0.00066874,112120.0,112110.0,1.15125762]
[1760263451549,0.00066874,112120.0,112110.0,0.81125762]
[1760263452126,0.00066874,112120.0,112110.0,0.41125762]
[1760263452347,0.00066874,112120.0,112110.0,0.38625763]
[1760263453048,0.00066874,112120.0,112110.0,0.35610573]
[1760263453925,0.00066874,112120.0,112110.0,0.38625763]
[1760263458730,0.00066874,112120.0,112110.0,0.75125762]
[1760263458940,0.00066874,112120.0,112110.0,0.85125761]
[1760263459387,1e-08,112120.0,112110.0,1.25125761]
[1760263460057,1e-08,112120.0,112110.0,1.15125762]
[1760263460265,1e-08,112120.0,112110.0,1.25125761]
[1760263461367,1e-08,112120.0,112110.0,0.81125762]
[1760263461796,1e-08,112120.0,112110.0,0.38625763]
[1760263462010,1e-08,112120.0,112110.0,0.72625763]
[1760263467381,1e-08,112120.0,112110.0,0.75125762]
[1760263469274,1e-08,112120.0,112110.0,1.15125762]
[1760263469490,1e-08,112120.0,112110.0,0.75125762]
[1760263470161,1e-08,112120.0,112110.0,1.25125761]
[1760263470400,0.24991091,112180.0,112160.0,0.20845364]
[1760263470588,0.25041029,112180.0,112170.0,0.07369007]
[1760263470794,0.25041029,112180.0,112170.0,0.14738007]
[1760263470981,0.17878667,112180.0,112170.0,0.14738007]
[1760263472003,0.18770091,112180.0,112170.0,0.14738007]
[1760263475272,0.18770091,112180.0,112170.0,0.32568086]
[1760263475504,0.18770091,112180.0,112170.0,0.33800269]
[1760263475505,0.17878427,112180.0,112170.0,0.33800269]
[1760263477048,0.17878427,112180.0,112170.0,0.1597019]
[1760263477261,0.17878427,112180.0,112170.0,0.33800269]
[1760263477488,0.18226185,112180.0,112170.0,0.33800269]
[1760263481574,0.18226185,112180.0,112170.0,0.1597019]
[1760263481957,0.18226185,112180.0,112170.0,0.33800269]
[1760263483768,0.17828489,112180.0,112170.0,0.33800269]
[1760263484903,0.17828489,112180.0,112170.0,0.1597019]
[1760263485110,0.17828489,112180.0,112170.0,0.33800269]
[1760263485912,0.17828489,112180.0,112170.0,0.1597019]
[1760263487385,0.17828489,112180.0,112170.0,0.33800269]
[1760263488252,0.18725185,112210.0,112180.0,0.21735103]
[1760263488446,0.18730176,112210.0,112190.0,0.28645707]
[1760263488648,0.18730176,112210.0,112200.0,0.08892]
[1760263489286,0.21625176,112210.0,112200.0,0.04543]
[1760263489452,0.17825311,112200.0,112190.0,0.0468719]
[1760263489663,0.17825311,112200.0,112190.0,0.1182419]
[1760263489915,0.17825311,112200.0,112190.0,0.2965109]
[1760263491113,0.20995176,112210.0,112190.0,0.2965109]
[1760263491459,0.20995176,112210.0,112200.0,0.01755]
[1760263491667,0.18730176,112210.0,112200.0,0.25711842]
[1760263491870,0.18730176,112210.0,112200.0,0.26717311]
[1760263493314,4.991e-05,112210.0,112200.0,0.29732501]
[1760263497118,4.991e-05,112210.0,112200.0,0.38685453]
[1760263497520,0.00178783,112210.0,112200.0,0.38685453]
[1760263498366,0.00178783,112210.0,112200.0,0.41285452]
[1760263498559,0.00178783,112210.0,112200.0,0.38785453]
[1760263499635,0.00178783,112210.0,112200.0,0.38885453]
[1760263501045,0.00178783,112210.0,112200.0,0.38785453]
[1760263501249,0.00178783,112210.0,112200.0,0.72785453]
[1760263501648,0.00178783,112210.0,112200.0,0.72685453]
[1760263501881,0.00178783,112210.0,112200.0,0.72785453]
[1760263502723,0.00178783,112210.0,112200.0,0.72885453]
[1760263502931,0.00178783,112210.0,112200.0,0.72785453]
[1760263503554,0.00178783,112210.0,112200.0,0.72885453]
[1760263505455,0.00178783,112210.0,112200.0,0.38885453]
[1760263508912,0.00178783,112210.0,112200.0,0.38685453]
[1760263509149,0.00178783,112210.0,112200.0,0.38785453]
[1760263509650,0.00178783,112210.0,112200.0,0.42533453]
[1760263510092,0.00178783,112210.0,112200.0,0.42633453]
[1760263510749,0.00178783,112210.0,112200.0,0.1284]
[1760263510963,0.18002506,112210.0,112200.0,0.30665311]
[1760263511800,0.18002506,112210.0,112200.0,0.33680501]
[1760263512021,0.18002506,112210.0,112200.0,0.33480501]
[1760263512442,0.27351506,112210.0,112200.0,0.05503]
[1760263512885,0.27351506,112210.0,112200.0,0.03748]
[1760263513516,0.00178783,112210.0,112200.0,0.39336263]
[1760263513784,0.00852358,112230.0,112220.0,0.20837325]
[1760263514039,0.02088,112260.0,112220.0,0.01707]
[1760263514261,0.17819627,112240.0,112230.0,0.06043]
[1760263514470,0.22767627,112240.0,112230.0,0.26659547]
[1760263514678,0.04948,112240.0,112230.0,0.26659547]
[1760263514889,0.22766959,112240.0,112230.0,0.26659547]
[1760263516847,0.61167959,112240.0,112230.0,0.03748]
[1760263517683,0.63088497,112240.0,112230.0,0.03748]
[1760263518523,0.71366472,112240.0,112230.0,0.03748]
[1760263518734,0.17825311,112200.0,112190.0,0.09457362]
[1760263518945,0.24038142,112210.0,112200.0,0.03748]
[1760263519371,0.0286,112210.0,112200.0,0.03748]
[1760263519582,0.20685142,112210.0,112200.0,0.03748]
[1760263519797,0.20685142,112210.0,112200.0,0.03843436]
[1760263520010,0.20685142,112210.0,112200.0,0.03848422]
[1760263520641,0.20685142,112210.0,112200.0,0.06744422]
[1760263521075,0.17825142,112210.0,112200.0,0.26864733]
[1760263521336,0.17825142,112210.0,112200.0,0.03948422]
[1760263521337,0.20685142,112210.0,112200.0,0.03948422]
[1760263521552,0.57030142,112210.0,112200.0,0.03948422]
[1760263521773,0.5895068,112210.0,112200.0,0.04048422]
[1760263522194,0.5895068,112210.0,112200.0,0.03948422]
[1760263522402,0.5895068,112210.0,112200.0,0.03848422]
[1760263524554,0.5905068,112210.0,112200.0,0.03848422]
[1760263526066,0.59883343,112210.0,112200.0,0.03848422]
[1760263526489,0.6256474,112210.0,112200.0,0.03848422]
[1760263526689,0.61732077,112210.0,112200.0,0.03848422]
[1760263527341,0.59811539,112210.0,112200.0,0.03848422]
[1760263529413,0.61727999,112210.0,112200.0,0.03848422]
[1760263530256,0.61727999,112210.0,112170.0,0.02748]
[1760263530486,0.61727999,112210.0,112170.0,0.03752991]
[1760263530487,0.19049489,112180.0,112170.0,0.03752991]
[1760263530926,0.22107489,112180.0,112170.0,0.06802991]
[1760263533429,0.22107489,112180.0,112170.0,0.09117991]
[1760263534033,0.19049489,112180.0,112170.0,0.09117991]
[1760263534248,0.19049489,112180.0,112170.0,0.13481991]
[1760263534453,0.22107489,112180.0,112170.0,0.09117991]
[1760263534888,0.19049489,112180.0,112170.0,0.09117991]
[1760263535519,0.19047324,112190.0,112170.0,0.3131207]
[1760263535733,0.17828489,112180.0,112170.0,0.09117991]
[1760263535952,0.17828489,112180.0,112170.0,0.13481991]
[1760263536160,0.20886489,112180.0,112170.0,0.09291829]
[1760263537204,0.17828489,112180.0,112170.0,0.13733829]
[1760263537423,0.53047324,112190.0,112170.0,0.31563908]
[1760263537639,0.17828489,112180.0,112170.0,0.2694807]
[1760263538289,0.17828489,112180.0,112170.0,0.3139007]
[1760263538491,0.17828489,112180.0,112170.0,0.2694807]
[1760263538701,0.17828489,112180.0,112170.0,0.13559991]
[1760263538903,0.20835489,112180.0,112170.0,0.09117991]
[1760263539693,0.20835489,112180.0,112170.0,0.06067991]
[1760263539833,0.20835489,112180.0,112170.0,0.08956991]
[1760263540230,0.24459989,112180.0,112170.0,0.08956991]
[1760263541130,0.60899989,112180.0,112170.0,0.03752991]
[1760263542980,0.62817958,112180.0,112170.0,0.03752991]
[1760263543394,0.60899989,112180.0,112170.0,0.03926829]
[1760263543821,0.6281759,112180.0,112170.0,0.03926829]
[1760263544650,0.63735289,112180.0,112170.0,0.03926829]
[1760263545247,0.63835289,112180.0,112170.0,0.03926829]
[1760263545499,0.73464419,112180.0,112170.0,0.03926829]
[1760263546292,0.75861845,112180.0,112170.0,0.03926829]
[1760263546705,0.67065658,112180.0,112170.0,0.03926829]
[1760263548380,0.67065658,112180.0,112170.0,1e-08]
[1760263548381,0.86849673,112180.0,112170.0,1e-08]
[1760263548585,0.83656546,112180.0,112170.0,1e-08]
[1760263549450,0.78836365,112180.0,112170.0,1e-08]
[1760263549871,0.83538713,112180.0,112170.0,1e-08]
[1760263550092,0.71038715,112180.0,112170.0,1e-08]
[1760263550301,0.84340019,112180.0,112170.0,1e-08]
[1760263550709,0.79537671,112180.0,112170.0,1e-08]
[1760263551334,0.84340019,112180.0,112170.0,1e-08]
[1760263551535,0.92510647,112180.0,112170.0,1e-08]
[1760263552272,0.82510648,112180.0,112170.0,1e-08]
[1760263552478,0.92510647,112180.0,112170.0,1e-08]
[1760263553067,0.85525838,112180.0,112170.0,1e-08]
[1760263553279,0.95525837,112180.0,112170.0,1e-08]
[1760263553489,0.90723489,112180.0,112170.0,1e-08]
[1760263553693,0.92121954,112180.0,112170.0,1e-08]
[1760263553933,0.90723489,112180.0,112170.0,1e-08]
[1760263554323,0.8072349,112180.0,112170.0,1e-08]
[1760263554686,0.90723489,112180.0,112170.0,1e-08]
[1760263556033,0.8980979,112180.0,112170.0,1e-08]
[1760263556277,0.82492622,112180.0,112170.0,1e-08]
[1760263556499,0.93891156,112180.0,112170.0,1e-08]
[1760263556894,0.83891157,112180.0,112170.0,1e-08]
[1760263557230,0.93891156,112180.0,112170.0,1e-08]
[1760263557848,0.83891157,112180.0,112170.0,1e-08]
[1760263558076,0.93891156,112180.0,112170.0,1e-08]
[1760263558276,0.51833259,112150.0,112140.0,0.07162362]
[1760263558448,0.61113879,112150.0,112140.0,0.072123]
[1760263558817,0.63502879,112150.0,112140.0,0.072123]
[1760263559029,0.6618571,112150.0,112140.0,0.00223845]
[1760263559681,0.62551121,112150.0,112140.0,0.00223845]
[1760263562953,0.70829351,112150.0,112140.0,0.00223845]
[1760263563134,0.61718178,112150.0,112140.0,1e-08]
[1760263563344,0.62550885,112150.0,112140.0,1e-08]
[1760263563962,0.62550885,112150.0,112110.0,0.07162362]
[1760263563963,0.5183803,112120.0,112110.0,0.07162362]
[1760263564165,0.5838303,112120.0,112110.0,0.07177339]
[1760263564367,0.60302042,112120.0,112110.0,0.00014977]
[1760263564839,0.62985403,112120.0,112110.0,0.00014977]
[1760263565199,0.62985403,112120.0,112100.0,0.03748]
[1760263565200,0.17839621,112110.0,112100.0,0.03748]
[1760263565485,0.20240621,112110.0,112100.0,0.03756884]
[1760263565677,0.23178621,112110.0,112100.0,0.03756884]
[1760263565879,0.57178621,112110.0,112100.0,0.03756884]
[1760263566056,0.59097633,112110.0,112100.0,0.03756884]
[1760263567201,0.17844396,112080.0,112070.0,0.12042362]
[1760263567406,0.56002396,112080.0,112070.0,0.12111354]
[1760263567610,0.56002396,112080.0,112070.0,0.04948992]
[1760263568130,0.51844396,112080.0,112070.0,0.09178992]
[1760263570916,0.51844396,112080.0,112070.0,0.27024981]
[1760263570917,0.17844396,112080.0,112070.0,0.27024981]
[1760263571132,0.17844396,112080.0,112070.0,0.09585084]
[1760263571749,0.17844396,112080.0,112070.0,0.27431073]
[1760263572205,0.17844396,112080.0,112070.0,0.09585084]
[1760263573477,0.17844214,112090.0,112070.0,0.29215671]
[1760263573686,0.17844396,112080.0,112070.0,0.22794981]
[1760263574314,0.17844396,112080.0,112070.0,0.27024981]
[1760263574533,0.52735997,112100.0,112080.0,0.17844396]
[1760263574756,0.17842804,112090.0,112080.0,0.02298]
[1760263574969,0.19042804,112090.0,112080.0,0.02298]
[1760263575181,0.51844396,112080.0,112070.0,0.02136992]
[1760263575395,0.54802396,112080.0,112070.0,0.02136992]
[1760263575600,0.54802396,112080.0,112070.0,0.00044992]
[1760263575807,0.54802396,112080.0,112070.0,0.02856992]
[1760263577562,0.54802396,112080.0,112070.0,0.00044992]
[1760263577731,0.54802396,112080.0,112070.0,0.05154992]
[1760263580211,0.54802396,112080.0,112070.0,0.02856992]
[1760263580436,0.58426896,112080.0,112070.0,0.02856992]
[1760263580634,0.58426896,112080.0,112070.0,0.03263084]
[1760263583367,0.58426896,112080.0,112070.0,0.05561084]
[1760263586332,0.60346488,112080.0,112070.0,0.05561084]
[1760263586743,0.63030685,112080.0,112070.0,0.05561084]
[1760263588137,0.60072685,112080.0,112070.0,0.09791084]
[1760263588336,0.58153093,112080.0,112070.0,0.11575682]
[1760263588578,0.55468896,112080.0,112070.0,0.09791084]
[1760263589183,0.58426896,112080.0,112070.0,0.05561084]
[1760263589513,0.56110982,112080.0,112070.0,0.05561084]
[1760263590515,0.53152982,112080.0,112070.0,0.09791084]
[1760263590836,0.24152982,112080.0,112070.0,0.09791084]
[1760263592497,0.27110982,112080.0,112070.0,0.05561084]
[1760263593305,0.2607513,112080.0,112070.0,0.09791084]
[1760263593530,0.2903313,112080.0,112070.0,0.09791084]
[1760263593737,0.26349044,112080.0,112070.0,0.09791084]
[1760263594177,0.23391044,112080.0,112070.0,0.09791084]
[1760263594383,0.26349044,112080.0,112070.0,0.05561084]
[1760263594787,0.26349044,112080.0,112070.0,0.02749084]
[1760263595194,0.26349044,112080.0,112070.0,0.05561084]
[1760263597564,0.26349044,112080.0,112070.0,0.02749084]
[1760263597770,0.28750044,112080.0,112070.0,0.00451084]
[1760263600705,0.26349044,112080.0,112070.0,0.00451084]
[1760263601226,0.26349044,112080.0,112070.0,0.03337084]
[1760263601810,0.26349044,112080.0,112070.0,0.00451084]
[1760263602225,0.23391044,112080.0,112070.0,0.09946084]
[1760263604285,0.21468896,112080.0,112070.0,0.09946084]
[1760263604488,0.23391044,112080.0,112070.0,0.09946084]
[1760263606291,0.21468896,112080.0,112070.0,0.09946084]
[1760263618990,0.21468896,112080.0,112070.0,0.32591861]
[1760263619198,0.036245,112080.0,112070.0,0.30807263]
[1760263619400,0.22622896,112080.0,112070.0,0.08513274]
[1760263619623,0.22622896,112080.0,112070.0,0.09946084]
[1760263619858,0.25549896,112080.0,112070.0,0.09946084]
[1760263620059,0.22622896,112080.0,112070.0,0.09946084]
[1760263620511,0.21468896,112080.0,112070.0,0.09946084]
[1760263622255,0.24395896,112080.0,112070.0,0.00451084]
[1760263622489,0.26749896,112080.0,112070.0,0.00451084]
[1760263622882,0.24395896,112080.0,112070.0,0.00451084]
[1760263623246,0.24395896,112080.0,112070.0,0.03443084]
[1760263623657,0.24395896,112080.0,112070.0,0.00451084]
[1760263624047,0.24395896,112080.0,112070.0,0.03443084]
[1760263624673,0.24399896,112080.0,112070.0,0.03443084]
[1760263625127,0.24399896,112080.0,112070.0,0.05681084]
[1760263625307,0.24399896,112080.0,112070.0,0.10129084]
[1760263625308,0.21472896,112080.0,112070.0,0.10129084]
[1760263626908,0.21472896,112080.0,112070.0,0.10103477]
[1760263629337,0.036285,112080.0,112070.0,0.32749254]
[1760263629555,0.036285,112080.0,112070.0,0.30964656]
[1760263632622,0.036285,112080.0,112070.0,0.64964656]
[1760263633657,0.036285,112080.0,112070.0,0.65164656]
[1760263634133,0.036285,112080.0,112070.0,0.65064656]
[1760263634294,0.036285,112080.0,112070.0,0.65164656]
[1760263634676,0.036285,112080.0,112070.0,0.65264656]
[1760263642381,0.036285,112080.0,112070.0,0.74217608]
[1760263642840,0.036285,112080.0,112070.0,0.76900741]
[1760263643513,0.07162362,112120.0,112110.0,0.20854811]
[1760263643749,0.07162362,112120.0,112110.0,0.30187811]
[1760263644180,0.17836833,112130.0,112120.0,0.2085322]
[1760263644393,0.17836833,112130.0,112120.0,0.3018622]
[1760263644629,0.17836833,112130.0,112120.0,0.1234819]
[1760263644846,0.17836833,112130.0,112120.0,0.31970023]
[1760263645059,0.17836833,112130.0,112120.0,0.1234819]
[1760263645283,0.17836833,112130.0,112120.0,0.14131993]
[1760263645811,0.17836833,112130.0,112120.0,0.35722023]
[1760263646016,0.17836833,112130.0,112120.0,0.3393822]
[1760263646758,0.18727301,112140.0,112120.0,0.3403822]
[1760263646966,0.00014949,112140.0,112130.0,0.24143439]
[1760263647180,0.00014949,112140.0,112130.0,0.27169439]
[1760263648682,0.00014949,112140.0,112130.0,0.61169439]
[1760263649518,0.00014949,112140.0,112130.0,0.64184629]
[1760263650561,0.00014906,112140.0,112130.0,0.64284629]
[1760263650755,0.00014906,112140.0,112130.0,0.64384629]
[1760263652237,0.15786974,112170.0,112150.0,0.17833259]
[1760263652439,0.17831837,112160.0,112150.0,0.20848449]
[1760263652682,0.17831837,112160.0,112150.0,0.22938449]
[1760263652903,0.17831837,112160.0,112150.0,0.25964449]
[1760263653310,0.17831837,112160.0,112150.0,0.30181449]
[1760263654801,0.17831669,112160.0,112150.0,0.30181449]
[1760263655994,0.17831669,112160.0,112150.0,0.1234819]
[1760263656174,0.17831669,112160.0,112150.0,0.31964774]
[1760263656384,0.17831669,112160.0,112150.0,0.1234819]
[1760263656576,0.17831669,112160.0,112150.0,0.14131515]
[1760263657892,0.17831669,112160.0,112150.0,0.1234819]
[1760263658112,0.17831669,112160.0,112150.0,0.14131515]
[1760263658940,0.20751669,112160.0,112150.0,0.05116]
[1760263659145,0.17833259,112150.0,112140.0,0.06311]
[1760263659346,0.17833259,112150.0,112140.0,0.1229719]
[1760263660339,0.17833259,112150.0,112140.0,0.12392693]
[1760263660581,0.17833259,112150.0,112140.0,0.12492693]
[1760263660793,0.17833259,112150.0,112140.0,0.12592693]
[1760263661419,0.21953259,112150.0,112140.0,0.05356503]
[1760263661860,0.21953259,112150.0,112140.0,0.09535805]
[1760263662274,0.19033259,112150.0,112140.0,0.09435805]
[1760263662445,0.21978259,112150.0,112140.0,0.09435805]
[1760263662647,0.19033259,112150.0,112140.0,0.09335805]
[1760263664403,0.20947597,112150.0,112140.0,0.09335805]
[1760263666657,0.20947597,112150.0,112140.0,0.05114805]
[1760263666658,0.23892597,112150.0,112140.0,0.05114805]
[1760263667018,0.23892597,112150.0,112140.0,0.02143805]
[1760263667262,0.62499186,112150.0,112140.0,0.00095503]
[1760263667453,0.67644793,112150.0,112140.0,0.00095503]
[1760263668659,0.68477915,112150.0,112140.0,0.00095503]
[1760263670358,0.68478263,112150.0,112140.0,0.00095503]
[1760263671767,0.73261441,112150.0,112140.0,0.00095503]
[1760263672419,0.68478263,112150.0,112140.0,0.00095503]
[1760263674290,0.67644793,112150.0,112140.0,0.00095503]
[1760263674493,0.70046576,112150.0,112140.0,0.00095503]
[1760263675438,0.67644793,112150.0,112140.0,0.00095503]
[1760263675842,0.70046488,112150.0,112140.0,0.00095503]
[1760263676243,0.70046322,112150.0,112140.0,0.00095503]
[1760263676451,0.70048394,112150.0,112140.0,0.00095503]
[1760263677332,0.67646865,112150.0,112140.0,0.00095503]
[1760263677529,0.73263781,112150.0,112140.0,0.00095503]